[Event "44th Chess Olympiad Open 2022"]
[Site "Chennai"]
[Date "2022.08.02"]
[Round "5.2"]
[White "Shirov, Alexei"]
[Black "Gukesh D"]
[Result "0-1"]
[WhiteElo "2704"]
[BlackElo "2684"]
[Annotator "TA"]
[PlyCount "88"]
[EventDate "2022.??.??"]
[TimeControl "60"]

{[%evp 10,88,41,18,25,25,37,12,39,-14,-13,-20,4,-21,-18,-22,0,0,0,-6,0,0,0,0,0,
0,8,0,0,0,0,-14,-13,-41,-42,-34,-36,-43,-52,-53,-55,-62,-72,-68,-38,-20,-31,
-172,-168,-168,-165,-165,-159,-185,-150,-160,-151,-161,-147,-158,-147,-206,
-230,-320,-304,-293,-229,-353,-326,-399,-368,-893,-865,-881,-883,-861,-860,
-764,-330,-745,-716]} 1. e4 {[%emt 0:00:03]} c5 {[%emt 0:01:14]} 2. Nf3 {
[%emt 0:00:05]} Nc6 {[%emt 0:00:35]} 3. Nc3 {[%emt 0:00:04]} e5 {[%emt 0:01:24]
} 4. Bc4 {[%emt 0:00:06]} d6 {[%emt 0:02:03]} 5. d3 {[%emt 0:00:09]} h6 {
[%emt 0:00:46]} 6. Nd5 {[%emt 0:09:54]} Nf6 {[%emt 0:12:51] B30: Sicilian: 2...
Nc6 3 Bb5, lines without ...g6.} 7. c3 {[%emt 0:01:49]} Be7 {[%emt 0:01:06]} 8.
a3 {[%emt 0:11:50] [#]} a5 $146 {[%emt 0:00:45] The position is equal.} ({
Predecessor:} 8... O-O 9. Be3 Nxd5 10. Bxd5 Bf6 11. b4 Ne7 12. Bb3 b6 13. h3
Bb7 14. Nh2 Ng6 {1-0 (32) Genocchio,D (2440)-Mrdja,M (2386) Bergamo 2009}) 9.
Rg1 {[%emt 0:05:51]} (9. a4 $14) 9... Nxd5 {[%emt 0:05:35]} 10. Bxd5 {[%emt 0:
00:00]} Be6 {[%emt 0:01:04]} 11. Bxe6 {[%emt 0:02:06]} fxe6 {[%emt 0:00:46]}
12. g4 {[%emt 0:00:02]} Qd7 {[%emt 0:07:40]} 13. g5 {[%emt 0:01:17]} hxg5 {
[%emt 0:00:32]} 14. Bxg5 {[%emt 0:00:05]} Bxg5 {[%emt 0:01:45]} 15. Rxg5 {
[%emt 0:00:18]} O-O-O {[%emt 0:00:59]} 16. Qe2 {[%emt 0:09:12]} Rdf8 {[%emt 0:
00:00]} 17. O-O-O {[%emt 0:01:31]} Rf7 {[%emt 0:10:25]} 18. Rg2 {[%emt 0:06:49]
} a4 {[%emt 0:02:31]} 19. Rdg1 {[%emt 0:02:57]} b5 {[%emt 0:02:41]} 20. Ng5 {
[%emt 0:07:07]} Re7 {[%emt 0:01:39]} 21. d4 {[%emt 0:05:28]} exd4 {[%emt 0:00:
00]} 22. Qxb5 {[%emt 0:00:05]} Ne5 {[%emt 0:04:03]} 23. Qa6+ {[%emt 0:00:30]}
Qb7 {[%emt 0:00:49]} 24. Qxb7+ {[%emt 0:01:03]} Kxb7 {[%emt 0:04:45]} 25. cxd4
$1 {[%emt 0:00:16]} cxd4 {[%emt 0:00:13]} 26. Rd1 {[%emt 0:00:24] Prevents
Nd3+.} Nc6 {[%emt 0:01:21] Black is more active.} 27. f4 {[%emt 0:00:23]} e5
$36 {[%emt 0:07:12] Black is more active.} 28. f5 {[%emt 0:02:37] Now White is
beyond hope.} (28. fxe5 $15 dxe5 29. Rf1) 28... Na5 $19 {[%emt 0:00:00]} 29.
Ne6 {[%emt 0:02:34]} Nb3+ {[%emt 0:11:37]} 30. Kb1 {[%emt 0:00:11]} Kb6 {
[%emt 0:06:24]} 31. Rc2 {[%emt 0:07:56]} Rh4 {[%emt 0:02:49]} 32. Rc4 {[%emt 0:
00:25]} Rxe4 {[%emt 0:00:19]} ({Stronger than} 32... Rxh2 33. Rb4+ Kc6 34. Rc4+
Kb7 35. Ka2 $15) 33. Rxa4 {[%emt 0:00:49]} Nc5 {[%emt 0:00:04]} 34. Rb4+ {
[%emt 0:04:04] [#]} Kc6 $1 {[%emt 0:00:04]} 35. Rc1 {[%emt 0:00:12] [#]} (35.
a4 $17 {was necessary.}) 35... Re2 $1 {[%emt 0:00:03]} 36. h4 {[%emt 0:00:00]}
Kd5 {[%emt 0:00:47]} 37. Rb5 {[%emt 0:00:19] aiming for b4.} Ke4 {[%emt 0:00:
00][%csl Ye6,Yf5]} 38. Nxc5+ {[%emt 0:02:39]} (38. Rd1 $142) 38... dxc5 {
[%emt 0:00:02]} 39. Rcxc5 {[%emt 0:00:07] Endgame KRR-KRR} d3 {[%emt 0:00:56]
And now ...Re1+ would win.} 40. Kc1 $2 {[%emt 0:00:19]} (40. Rd5 Rh2 41. b4)
40... Kf3 {[%emt 0:01:00]} 41. Rc3 {[%emt 0:12:39]} e4 {[%emt 0:00:00]
Threatens to win with ...Rd7.} 42. Rd5 {[%emt 0:00:28] Prevents Rd7.} Ke3 {
[%emt 0:01:33][%cal Re2e1]} 43. b4 {[%emt 0:00:07]} Re1+ {[%emt 0:07:40]} 44.
Kb2 {[%emt 0:00:06]} Ke2 {[%emt 0:00:04] Weighted Error Value: White=0.34/
Black=0.06 (flawless)} 0-1

[Event "44th Chess Olympiad Open 2022"]
[Site "Chennai"]
[Date "2022.08.02"]
[Round "5.2"]
[White "Santos Latasa, Jaime"]
[Black "Praggnanandhaa R"]
[Result "1-0"]
[WhiteElo "2675"]
[BlackElo "2648"]
[Annotator "TA"]
[PlyCount "169"]
[EventDate "2022.??.??"]
[TimeControl "60"]

{[%evp 9,169,29,25,26,25,25,20,17,14,14,14,14,16,14,16,22,19,20,19,10,15,0,0,0,
0,-7,0,0,0,0,0,0,11,11,19,19,19,19,20,10,24,19,47,33,68,68,76,76,84,77,83,76,
76,46,46,46,46,46,46,46,46,46,46,46,57,57,77,77,80,77,78,83,87,23,19,17,41,7,
39,34,27,19,19,0,5,0,6,2,25,2,2,2,2,2,2,2,4,5,29,3,22,14,29,0,9,8,9,9,9,9,9,11,
11,1,1,1,1,1,8,1,1,0,0,0,1,1,1,0,1,1,1,1,1,1,40,2,0,0,0,0,0,0,0,0,0,0,0,0,0,0,
0,0,0,0,258,258,5157,4133,1366,1286,719,667]} 1. e4 {[%emt 0:00:03]} c5 {
[%emt 0:00:41]} 2. Nf3 {[%emt 0:00:07]} Nc6 {[%emt 0:00:09]} 3. Nc3 {[%emt 0:
00:00]} e5 {[%emt 0:00:23]} 4. Bc4 {[%emt 0:00:05]} Be7 {[%emt 0:00:25]} 5. d3
{[%emt 0:00:08]} d6 {[%emt 0:00:11]} 6. a4 {[%emt 0:00:06] B30: Sicilian: 2...
Nc6 3 Bb5, lines without ...g6.} Nf6 {[%emt 0:01:07]} 7. Bg5 {[%emt 0:01:43]}
Nb4 {[%emt 0:01:05]} 8. Bxf6 {[%emt 0:01:28] The position is equal.} Bxf6 {
[%emt 0:00:10]} 9. Nd5 {[%emt 0:00:05]} Nxd5 {[%emt 0:06:34]} 10. Bxd5 {
[%emt 0:00:09]} O-O {[%emt 0:00:38]} 11. O-O {[%emt 0:00:12]} Be6 {[%emt 0:00:
00]} 12. Bxe6 {[%emt 0:02:46]} fxe6 {[%emt 0:00:04]} 13. c3 {[%emt 0:00:06] [#]
} Qd7 $146 {[%emt 0:04:08]} ({Predecessor:} 13... Rc8 14. Re1 Rc7 15. Qb3 Qe8
16. Re3 h5 17. h3 Rcf7 18. Nh2 b6 19. Rb1 g6 {½-½ (26) Galliano,G (2450)
-Necchi,S (2393) ICCF email 2021}) 14. Qe2 {[%emt 0:01:05]} Rf7 {[%emt 0:03:16]
} 15. h3 {[%emt 0:10:08]} Raf8 {[%emt 0:03:36]} 16. Nh2 {[%emt 0:09:57]} Bd8 {
[%emt 0:03:49]} 17. Ng4 {[%emt 0:05:09]} Qc6 {[%emt 0:12:26]} 18. Ne3 {[%emt 0:
00:00]} b6 {[%emt 0:03:39]} 19. g3 {[%emt 0:07:24]} a6 {[%emt 0:04:52]} 20. b3
{[%emt 0:02:45]} b5 {[%emt 0:09:32]} 21. axb5 {[%emt 0:00:12]} axb5 {[%emt 0:
00:00]} 22. c4 {[%emt 0:00:07]} Rb7 {[%emt 0:04:10]} 23. h4 {[%emt 0:01:28]}
Qd7 {[%emt 0:02:08]} 24. Kg2 {[%emt 0:01:00]} Bc7 {[%emt 0:00:45]} 25. Ra2 {
[%emt 0:00:59]} Rfb8 {[%emt 0:01:17]} 26. Rfa1 {[%emt 0:01:15]} bxc4 {[%emt 0:
00:00]} 27. bxc4 {[%emt 0:00:07]} Bd8 {[%emt 0:02:22]} 28. Nd1 {[%emt 0:01:19]
[%cal Ye3d1,Yd1c3,Yc3b5]} Rb3 {[%emt 0:05:00]} 29. Ra8 {[%emt 0:04:42]} Qc8 {
[%emt 0:04:00]} 30. Rxb8 {[%emt 0:02:46]} Rxb8 {[%emt 0:01:34]} 31. Nc3 {
[%emt 0:00:36]} Ra8 {[%emt 0:02:28]} 32. Rb1 {[%emt 0:02:12]} h6 {[%emt 0:00:
00]} 33. Rb3 {[%emt 0:01:13]} Kh7 {[%emt 0:03:13]} 34. Qb2 {[%emt 0:01:04]} Ra7
{[%emt 0:02:11]} 35. Nb5 {[%emt 0:03:47][%csl Ya7,Yd6]} (35. Rb8 {feels hotter.
} Qc7 36. Qb5 Ra5 37. Qb3) 35... Ra6 {[%emt 0:00:12]} 36. Ra3 {[%emt 0:00:00] 
[#] Threatens to win with Na7.} Rxa3 {[%emt 0:03:50]} 37. Qxa3 $14 {[%emt 0:00:
09] Endgame KQB-KQN} Qd7 {[%emt 0:00:19]} 38. Qa8 {[%emt 0:00:45]} Kg6 {
[%emt 0:06:23]} 39. Qb8 {[%emt 0:00:45]} Be7 {[%emt 0:00:00]} 40. Qg8 {[%emt 0:
07:01][%cal Yh4h5] White is more active.} Bd8 {[%emt 0:00:00]} 41. Nc3 {
[%emt 0:33:00]} (41. Kf3 $16) 41... Ba5 $11 {[%emt 0:03:40]} 42. Ne2 {[%emt 0:
00:00]} Qf7 {[%emt 0:06:35]} 43. Qb8 {[%emt 0:00:00]} (43. h5+ $5 Kf6 44. Qa8
Qxh5 45. Qf8+ Qf7 46. Qxd6 $11) 43... Qe7 {[%emt 0:01:49]} (43... Be1 $5 {
[%cal Rf7f2]} 44. f3 (44. f4 Kh7 $11) 44... Qd7 $11) 44. Ng1 {[%emt 0:00:00]}
Kf7 {[%emt 0:03:21]} 45. Nf3 {[%emt 0:00:00]} Bd8 {[%emt 0:00:00]} 46. h5 {
[%emt 0:00:00]} Qd7 {[%emt 0:01:09]} 47. Nh2 {[%emt 0:00:00]} Kg8 {[%emt 0:03:
55]} 48. Qb1 {[%emt 0:00:00]} Kh7 {[%emt 0:00:52]} 49. Qd1 {[%emt 0:00:00]} Bg5
{[%emt 0:01:05]} 50. Qg4 {[%emt 0:00:00]} Qf7 {[%emt 0:00:00]} 51. Nf3 {
[%emt 0:00:00]} Bd8 {[%emt 0:00:54]} 52. Ng1 {[%emt 0:00:00]} Bg5 {[%emt 0:00:
56]} 53. Qd1 {[%emt 0:00:00]} Bd8 {[%emt 0:02:52]} 54. Nh3 {[%emt 0:00:00]} Ba5
{[%emt 0:00:59]} 55. Qa1 {[%emt 0:00:00]} Bd8 {[%emt 0:00:00]} 56. Qd1 {
[%emt 0:00:00]} Ba5 {[%emt 0:00:08]} 57. Qg4 {[%emt 0:00:00]} Bd2 {[%emt 0:00:
47]} 58. Kf1 {[%emt 0:00:00]} Bc3 {[%emt 0:00:35]} 59. Ng1 {[%emt 0:00:00]} Ba5
{[%emt 0:00:57]} 60. Kg2 {[%emt 0:00:00]} Bd8 {[%emt 0:00:00]} 61. Nh3 {
[%emt 0:00:00]} g6 {[%emt 0:02:55]} 62. hxg6+ {[%emt 0:00:00]} Qxg6 {[%emt 0:
00:02]} 63. Qe2 {[%emt 0:00:00]} h5 {[%emt 0:00:23]} 64. Qa2 {[%emt 0:00:00]}
Kg7 {[%emt 0:00:55]} 65. Ng1 {[%emt 0:00:00]} h4 {[%emt 0:00:00]} 66. Qa7+ {
[%emt 0:00:00]} Kf8 {[%emt 0:01:22]} 67. Qb8 {[%emt 0:00:00][%csl Yd6,Yd8]} Ke7
{[%emt 0:00:03]} 68. Qb7+ {[%emt 0:00:00]} Ke8 {[%emt 0:00:00]} 69. Qc6+ {
[%emt 0:00:00]} Ke7 {[%emt 0:00:06]} 70. Nf3 {[%emt 0:00:00]} hxg3 {[%emt 0:00:
16]} 71. fxg3 {[%emt 0:00:00]} Qh6 {[%emt 0:00:23]} 72. Qb7+ {[%emt 0:00:00]}
Ke8 {[%emt 0:00:51]} 73. Qb2 {[%emt 0:00:00]} Kf7 {[%emt 0:00:00]} 74. Qd2 {
[%emt 0:00:09]} Qh5 {[%emt 0:00:28]} 75. Qe2 {[%emt 0:00:18]} Qh6 {[%emt 0:00:
44]} 76. Qf2 {[%emt 0:00:07] [#] Nxe5+ would kill now.} Kg7 {[%emt 0:00:59]}
77. Qd2 {[%emt 0:00:42] Hoping for Qxh6+.} Qh5 {[%emt 0:00:12]} 78. Qc1 {
[%emt 0:00:08]} Qe8 {[%emt 0:00:51]} 79. Qd1 {[%emt 0:00:20]} Be7 {[%emt 0:00:
59]} 80. Nh4 {[%emt 0:00:24]} Bxh4 {[%emt 0:01:38]} 81. Qg4+ {[%emt 0:00:34]}
Kf8 $2 {[%emt 0:00:41]} (81... Kh7 $11 {and Black has nothing to worry.} 82.
gxh4 Qf7) 82. Qxh4 $18 {[%emt 0:00:11] Strongly threatening Qh8+.} Qa4 $2 {
[%emt 0:01:10]} (82... Qg6 83. Qd8+ Kf7 84. Qd7+ Kf6 85. Qd8+ Kf7 86. Qd7+ Kg8
87. Qc8+ Kh7 88. Qc7+ Kg8 89. Qd8+ Kf7) 83. Qf6+ {[%emt 0:01:20] White is
clearly winning.} Kg8 {[%emt 0:00:08]} 84. Qxe6+ {[%emt 0:00:06]} Kh7 {[%emt 0:
00:11]} 85. Qe7+ {[%emt 0:00:09] Weighted Error Value: White=0.07 (flawless) /
Black=0.05 (flawless)} 1-0

[Event "44th Chess Olympiad Open 2022"]
[Site "Chennai"]
[Date "2022.08.02"]
[Round "5.2"]
[White "Sarin Nihal"]
[Black "Anton Guijarro, David"]
[Result "1/2-1/2"]
[WhiteElo "2651"]
[BlackElo "2667"]
[Annotator "TA"]
[PlyCount "80"]
[EventDate "2022.??.??"]
[TimeControl "60"]

{[%evp 18,80,4,0,11,0,0,0,0,0,0,0,0,0,0,0,0,0,0,0,0,-2,0,0,0,0,0,0,0,0,0,0,0,0,
0,-25,0,0,0,-1,0,0,0,0,0,0,0,0,0,0,0,0,0,0,0,0,0,0,0,0,0,0,0,-35,-39]} 1. d4 {
[%emt 0:00:34] Atalik,S} Nf6 {[%emt 0:00:13]} 2. c4 {[%emt 0:00:07]} e6 {
[%emt 0:00:18]} 3. Nc3 {[%emt 0:00:29]} Bb4 {[%emt 0:00:23]} 4. e3 {[%emt 0:00:
00]} O-O {[%emt 0:01:48]} 5. Bd3 {[%emt 0:00:08]} c5 {[%emt 0:01:34]} 6. Nge2 {
[%emt 0:00:23]} cxd4 {[%emt 0:01:08]} 7. exd4 {[%emt 0:00:10]} d5 {[%emt 0:00:
00]} 8. cxd5 {[%emt 0:04:29]} Nxd5 {[%emt 0:00:42]} 9. O-O {[%emt 0:00:08]} Nc6
{[%emt 0:00:53]} 10. Be4 {[%emt 0:08:21]} Bd6 {[%emt 0:12:52] E48:
Nimzo-Indian: Rubinstein: 5 Bd3 d5 including 6 Ne2, but excluding 6 a3.} 11.
Bxd5 {[%emt 0:29:15]} exd5 {[%emt 0:00:07]} 12. Bf4 {[%emt 0:00:04]} Bg4 {
[%emt 0:05:25] [#] White must now prevent ...Bxf4. The position is equal.} 13.
f3 {[%emt 0:03:42]} Be6 {[%emt 0:00:38]} 14. Bxd6 {[%emt 0:00:06]} Qxd6 {
[%emt 0:00:06]} 15. Qd2 {[%emt 0:00:03]} f6 {[%emt 0:04:50] [#]} 16. Rfe1 $146
{[%emt 0:03:10]} ({Predecessor:} 16. Nb5 Qd7 17. Rac1 Rac8 18. Ng3 Ne7 19. Na3
Qd6 20. Rfe1 Bd7 21. Nc2 Nc6 22. Re2 {½-½ (53) Atalik,S (2603)-Jobava,B 
(2734) Burgas 2012 CBM 151 [Atalik,S]}) 16... Rfe8 {[%emt 0:05:55]} 17. Ng3 {
[%emt 0:01:49]} Re7 {[%emt 0:08:49]} 18. Re2 {[%emt 0:07:52]} Rae8 {[%emt 0:00:
00]} 19. Rae1 {[%emt 0:00:54]} g6 {[%emt 0:04:22]} 20. Nf1 {[%emt 0:11:52]} Kg7
{[%emt 0:02:51]} 21. a3 {[%emt 0:02:19]} h5 {[%emt 0:04:28]} 22. h4 {[%emt 0:
00:00]} a6 {[%emt 0:09:33]} 23. Kf2 {[%emt 0:04:57]} b5 {[%emt 0:03:07][%cal
Yb7b5,Yb5b4]} 24. Na2 {[%emt 0:00:36][%cal Yc3a2,Ya2c1,Yc1b3]} a5 {[%emt 0:12:
42]} 25. Nc1 {[%emt 0:00:48]} b4 {[%emt 0:03:37]} 26. a4 {[%emt 0:00:23]} Bd7 {
[%emt 0:04:29]} 27. Nb3 {[%emt 0:00:26]} Rxe2+ {[%emt 0:00:00]} 28. Rxe2 {
[%emt 0:00:08]} Nd8 {[%emt 0:01:09]} 29. Rxe8 {[%emt 0:07:52]} Bxe8 {[%emt 0:
00:08]} 30. Nc5 {[%emt 0:03:00]} Ne6 {[%emt 0:00:22]} 31. Nxe6+ {[%emt 0:00:06]
} Qxe6 $11 {[%emt 0:00:03] Endgame KQB-KQN} 32. b3 {[%emt 0:00:56]} Qc6 {
[%emt 0:03:09]} 33. Ne3 {[%emt 0:05:04]} Bd7 {[%emt 0:00:00]} 34. f4 {[%emt 0:
01:55]} Bg4 {[%emt 0:02:25]} 35. Nxg4 {[%emt 0:01:26]} hxg4 {[%emt 0:00:05]
KQ-KQ} 36. g3 {[%emt 0:00:12]} Kf7 {[%emt 0:00:54]} 37. Ke2 {[%emt 0:00:32]}
Qc8 {[%emt 0:00:48]} 38. Kd1 {[%emt 0:00:47]} Qf5 {[%emt 0:00:35] [#] Hoping
for ...Qb1+.} 39. Qc2 {[%emt 0:00:22] Prevents Qb1+.} Qxc2+ {[%emt 0:00:35]}
40. Kxc2 {[%emt 0:00:05]} f5 {[%emt 0:00:07] Weighted Error Value: White=0.02 
(flawless) /Black=0.02 (flawless)} 1/2-1/2

[Event "44th Chess Olympiad Open 2022"]
[Site "Chennai"]
[Date "2022.08.02"]
[Round "5.2"]
[White "Adhiban, B..."]
[Black "Iturrizaga Bonelli, Eduardo"]
[Result "1-0"]
[WhiteElo "2598"]
[BlackElo "2619"]
[Annotator "TA"]
[PlyCount "89"]
[EventDate "2022.??.??"]
[TimeControl "60"]

{[%evp 16,89,33,32,35,42,45,27,47,31,36,35,56,37,49,51,50,50,44,42,53,44,58,44,
44,56,50,32,35,35,39,32,36,40,55,48,54,54,58,58,59,59,76,75,72,76,64,60,69,57,
60,59,59,60,80,81,83,72,72,75,96,99,274,300,303,299,423,423,422,415,29974,
29975,29966,29967,29985,29986]} 1. d4 {[%emt 0:00:06]} Nf6 {[%emt 0:00:07]} 2.
c4 {[%emt 0:00:07]} e6 {[%emt 0:00:04]} 3. Nc3 {[%emt 0:00:14]} Bb4 {[%emt 0:
00:00]} 4. e3 {[%emt 0:00:13]} O-O {[%emt 0:00:11]} 5. a3 {[%emt 0:00:15]}
Bxc3+ {[%emt 0:00:34]} 6. bxc3 {[%emt 0:00:03]} c5 {[%emt 0:03:59]} 7. Bd3 {
[%emt 0:00:13]} d5 {[%emt 0:00:29]} 8. cxd5 {[%emt 0:00:11]} Qxd5 {[%emt 0:00:
00]} 9. Nf3 {[%emt 0:01:59][%cal Ye3e4] Threatens to win with e4!} b6 {[%emt 0:
00:00] E49: Nimzo-Indian: Rubinstein: 5 Bd3 d5 6 a3 Bxc3+ 7 bxc3.} 10. c4 {
[%emt 0:01:32] was the old line (10.Qe2).} Qc6 {[%emt 0:03:05]} 11. Qe2 {
[%emt 0:19:21]} Bb7 {[%emt 0:07:43] White has an edge.} 12. O-O {[%emt 0:24:55]
} Nbd7 {[%emt 0:02:37]} 13. Bb2 {[%emt 0:00:03]} Rfd8 {[%emt 0:05:05] [#]} 14.
a4 $146 {[%emt 0:01:16]} ({Predecessor:} 14. Rfe1 Ne4 15. Rad1 Rac8 16. Qc2 h6
17. h4 Nef6 18. d5 exd5 19. cxd5 Nxd5 20. Bc4 {½-½ (62) Sherwood,R (1879)
-Van Rooijen,P (1703) IECG email 2003}) 14... Rac8 {[%emt 0:27:16]} 15. a5 {
[%emt 0:00:22]} Qc7 {[%emt 0:01:31]} 16. axb6 {[%emt 0:00:46]} axb6 {[%emt 0:
00:00]} 17. Nd2 {[%emt 0:08:03]} Ra8 {[%emt 0:09:17]} 18. Rfd1 {[%emt 0:05:05]}
Rxa1 {[%emt 0:03:28]} 19. Rxa1 {[%emt 0:00:27]} Ra8 {[%emt 0:00:30]} 20. Rxa8+
{[%emt 0:00:44]} Bxa8 {[%emt 0:00:04]} 21. h3 {[%emt 0:00:22]} h6 {[%emt 0:00:
00]} 22. Qe1 {[%emt 0:00:45]} Bc6 {[%emt 0:02:38]} 23. Bf1 {[%emt 0:01:20]}
cxd4 {[%emt 0:04:37]} 24. exd4 {[%emt 0:00:19]} Qb7 {[%emt 0:00:48]} 25. Nb3 {
[%emt 0:02:14]} Qa8 {[%emt 0:02:22]} 26. Qb4 {[%emt 0:04:56]} Be4 {[%emt 0:00:
00]} 27. Nd2 {[%emt 0:01:09][%cal Yb3d2,Yd2b1,Yb1c3,Yc3d1,Yd1e3]} Bc6 {[%emt 0:
00:06]} 28. Nb1 {[%emt 0:01:29]} Be4 {[%emt 0:01:02]} 29. Nc3 {[%emt 0:00:46]}
Bc6 {[%emt 0:00:05]} 30. Nd1 {[%emt 0:01:58]} Qb8 {[%emt 0:00:00]} 31. Ne3 {
[%emt 0:02:21][%cal Yd4d5]} Qf4 {[%emt 0:00:21]} 32. Qe1 {[%emt 0:00:32]} (32.
Be2 {keeps more tension.} Be4 33. Qa3 Bg6 34. Qa8+) 32... Bb7 {[%emt 0:02:13]}
33. d5 {[%emt 0:06:02]} exd5 {[%emt 0:06:24]} 34. cxd5 {[%emt 0:00:09]} Qe4 {
[%emt 0:00:25]} 35. f3 {[%emt 0:03:46]} Qf4 {[%emt 0:00:00]} 36. Qc3 {[%emt 0:
02:15]} Nc5 {[%emt 0:00:55]} 37. Bb5 {[%emt 0:02:51]} Qg5 {[%emt 0:03:21]} 38.
Bc6 {[%emt 0:01:37]} Bxc6 $2 {[%emt 0:00:42] This costs Black the game.} (38...
Ba6 $16) 39. dxc6 $18 {[%emt 0:00:04] [#] Strongly threatening c7.} Ne6 {
[%emt 0:00:04]} 40. Qe5 {[%emt 0:02:34]} ({Worse is} 40. c7 {[#]} Nxc7 $1 41.
Qxc7 Qxe3+ 42. Kh2 Qe6 $15) 40... Nc7 {[%emt 0:01:06]} (40... b5 $142 41. Qxg5
(41. Nf5 Ne8 $16) 41... hxg5) 41. Qxc7 {[%emt 0:36:47] White threatens Qd8+
and mate.} Qxe3+ {[%emt 0:01:20]} 42. Kh2 {[%emt 0:00:00] Qb8+ is the strong
threat.} Qe8 {[%emt 0:05:45] Prevents Qb8.} (42... Qe6 $18 43. Qd8+ (43. Qxb6
Qd6+ 44. Kh1 Qd1+ 45. Qg1 Qc2 $16) 43... Ne8) 43. Qd6 {[%emt 0:04:50] White
mates.} Qc8 {[%emt 0:00:51]} 44. Bxf6 {[%emt 0:00:00]} gxf6 {[%emt 0:00:05]}
45. Qd7 {[%emt 0:00:00] Weighted Error Value: White=0.03 (flawless) /Black=0.35
} 1-0

[Event "44th Chess Olympiad Open 2022"]
[Site "Chennai"]
[Date "2022.08.02"]
[Round "5.3"]
[White "Adams, Michael"]
[Black "Sargissian, Gabriel"]
[Result "1/2-1/2"]
[WhiteElo "2696"]
[BlackElo "2698"]
[Annotator "TA"]
[PlyCount "65"]
[EventDate "2022.??.??"]
[TimeControl "60"]

{[%evp 10,65,6,6,9,14,23,14,20,19,19,25,33,33,33,47,45,38,25,28,41,30,39,33,33,
22,34,19,28,15,15,16,22,11,26,27,43,8,3,0,0,0,11,18,5,8,11,0,0,0,0,0,7,0,6,0,0,
0]} 1. e4 {[%emt 0:00:04]} e5 {[%emt 0:00:11]} 2. Nf3 {[%emt 0:00:05]} Nc6 {
[%emt 0:00:10]} 3. Bc4 {[%emt 0:00:06]} Nf6 {[%emt 0:00:28]} 4. d3 {[%emt 0:00:
00]} Bc5 {[%emt 0:00:08]} 5. Nc3 {[%emt 0:00:05]} h6 {[%emt 0:02:48]} 6. O-O {
[%emt 0:00:55]} a6 {[%emt 0:01:23] 6...0-0 is a critical line. C50: Hungarian
Defence and Giuoco Pianissimo.} 7. Be3 {[%emt 0:01:40]} Bxe3 {[%emt 0:12:22]}
8. fxe3 {[%emt 0:00:04]} d6 {[%emt 0:00:14]} 9. d4 {[%emt 0:11:58]} O-O {
[%emt 0:03:11]} 10. a3 {[%emt 0:00:33]} exd4 {[%emt 0:12:24]} 11. exd4 {
[%emt 0:00:08]} Nxe4 {[%emt 0:00:20]} 12. Nxe4 {[%emt 0:00:08] And now Ng3
would win.} d5 {[%emt 0:00:08]} 13. Bd3 {[%emt 0:00:53] Strongly threatening
Ng3.} dxe4 {[%emt 0:00:07]} 14. Bxe4 {[%emt 0:00:03] [#]} Be6 $146 {[%emt 0:00:
00]} ({Predecessor:} 14... Qd6 15. c3 Bd7 16. Bc2 Rae8 17. Qd3 g6 18. Rae1 Kg7
19. Qd2 Rxe1 20. Rxe1 Re8 21. Rxe8 Bxe8 {½-½ (36) Van Foreest,L (2572)
-Vrolijk,L (2476) Germany 2022}) 15. c3 {[%emt 0:15:21]} Bd5 {[%emt 0:05:48]}
16. Nd2 {[%emt 0:02:15]} Qg5 {[%emt 0:08:38] [#] Against Qg4} 17. Qf3 {[%emt 0:
00:00] Prevents Qe3+.} Rad8 {[%emt 0:00:51]} 18. Rf2 {[%emt 0:01:20]} Ne7 {
[%emt 0:06:26]} 19. Raf1 {[%emt 0:11:10]} Ng6 {[%emt 0:03:55]} 20. Qd3 {
[%emt 0:05:06]} Bxe4 {[%emt 0:00:15]} 21. Nxe4 {[%emt 0:00:09][%cal Yd2e4,
Ye4g5,Yg5f3,Yf3e5]} Qb5 {[%emt 0:00:21]} 22. Qg3 {[%emt 0:02:49]} Qc6 {[%emt 0:
04:52]} 23. Qf3 {[%emt 0:05:20]} b6 {[%emt 0:00:34] The position is equal.} 24.
Re2 {[%emt 0:04:56]} a5 {[%emt 0:00:59]} 25. g3 {[%emt 0:05:22]} f5 {[%emt 0:
03:30] [#]} 26. Ng5 {[%emt 0:03:43]} Qxf3 {[%emt 0:00:06]} 27. Nxf3 {[%emt 0:
00:02]} Rfe8 {[%emt 0:01:22]} 28. Rfe1 {[%emt 0:02:31]} (28. Kf2 {looks
sharper.} f4 29. a4 Kf7 30. Ree1) 28... Rxe2 {[%emt 0:00:55]} 29. Rxe2 {
[%emt 0:00:02]} Kf7 {[%emt 0:00:51]} 30. a4 {[%emt 0:00:41]} Kf6 {[%emt 0:00:
00]} 31. Kf2 {[%emt 0:01:20]} Nh8 {[%emt 0:00:55]} 32. Ne5 {[%emt 0:03:50]} Nf7
{[%emt 0:01:31]} 33. Nxf7 {[%emt 0:02:00] Weighted Error Value: White=0.04 
(flawless) /Black=0.03 (flawless)} 1/2-1/2

[Event "44th Chess Olympiad Open 2022"]
[Site "Chennai"]
[Date "2022.08.02"]
[Round "5.3"]
[White "Howell, David W L"]
[Black "Ter-Sahakyan, Samvel"]
[Result "1/2-1/2"]
[WhiteElo "2650"]
[BlackElo "2625"]
[Annotator "RC"]
[PlyCount "63"]
[EventDate "2022.??.??"]
[TimeControl "60"]

1. Nf3 {[%emt 0:00:23]} d5 {[%emt 0:00:11]} 2. g3 {[%emt 0:00:18]} g6 {[%emt 0:
00:00]} 3. Bg2 {[%emt 0:01:10]} Bg7 {[%emt 0:00:05]} 4. d4 {[%emt 0:00:38]} Nf6
{[%emt 0:00:04]} 5. c4 {[%emt 0:01:03]} dxc4 {[%emt 0:00:15]} 6. Na3 {[%emt 0:
00:00]} O-O {[%emt 0:04:38]} 7. O-O {[%emt 0:01:33]} c3 {[%emt 0:00:42]} 8.
bxc3 {[%emt 0:00:14]} c5 {[%emt 0:00:03]} 9. Ne5 {[%emt 0:06:06]} Nc6 {[%emt 0:
00:00]} 10. Nac4 {[%emt 0:00:53]} Be6 {[%emt 0:01:23]} 11. Nxc6 {[%emt 0:05:24]
} bxc6 {[%emt 0:00:21]} 12. Qd3 {[%emt 0:00:07]} Rc8 {[%emt 0:02:04]} 13. Ba3 {
[%emt 0:13:39]} cxd4 {[%emt 0:00:52]} 14. cxd4 {[%emt 0:00:08]} c5 {[%emt 0:00:
00]} 15. dxc5 {[%emt 0:02:01]} Qxd3 {[%emt 0:00:50]} 16. exd3 {[%emt 0:00:11]}
Rfd8 {[%emt 0:00:21]} 17. Ne5 {[%emt 0:25:13]} Ng4 {[%emt 0:04:22]} 18. Nc6 {
[%emt 0:01:53]} Rxc6 {[%emt 0:14:26]} 19. Bxc6 {[%emt 0:00:11]} Bxa1 {[%emt 0:
00:00]} 20. Rxa1 {[%emt 0:00:09]} Rxd3 {[%emt 0:00:03]} 21. Bb4 {[%emt 0:03:47]
} Ne5 {[%emt 0:01:48]} 22. Bb5 {[%emt 0:02:14]} Rd4 {[%emt 0:07:43]} 23. Bc3 {
[%emt 0:11:29]} Rd5 {[%emt 0:07:39]} 24. Bxe5 {[%emt 0:06:34]} Rxc5 {[%emt 0:
00:00]} 25. Bd4 {[%emt 0:00:07]} Rxb5 {[%emt 0:00:05]} 26. Bxa7 {[%emt 0:00:09]
} Ra5 {[%emt 0:00:19]} 27. Bb6 {[%emt 0:00:05]} Rxa2 {[%emt 0:00:38]} 28. Rxa2
{[%emt 0:00:07]} Bxa2 {[%emt 0:00:03]} 29. Bc5 {[%emt 0:00:10]} Kf8 {[%emt 0:
00:00]} 30. h4 {[%emt 0:00:06]} f6 {[%emt 0:00:06]} 31. Kf1 {[%emt 0:00:09]}
Kf7 {[%emt 0:00:05]} 32. Ke2 {[%emt 0:00:05]} 1/2-1/2